bitfinex-derivatives/quotes_SOLF0:USTF0_20240816
["timestamp","ask_amount","ask_price","bid_price","bid_amount"]
[1723833568460,3.5928177,139.29,139.27,3.5891]
[1723833568648,1.05025694,139.3,139.27,0.05446727]
[1723833568957,1.05025694,139.3,139.29,3.5887]
[1723833571550,4.62938104,139.3,139.27,0.05446727]
[1723833571752,4.63865694,139.3,139.27,0.05446727]
[1723833572146,1.05025694,139.3,139.27,0.05446727]
[1723833572350,7.16541193,139.29,139.27,0.05446727]
[1723833575256,3.57661193,139.29,139.27,0.05446727]
[1723833576072,7.16531193,139.29,139.27,0.05446727]
[1723833576561,3.57661193,139.29,139.27,0.05446727]
[1723833576772,6.04,139.32,139.27,0.05446727]
[1723833576773,1.0,139.35,139.28,6.04]
[1723833576965,0.26387461,139.34,139.32,51.7]
[1723833577158,1.0,139.35,139.32,51.7]
[1723833577559,1.0,139.35,139.33,3.5875]
[1723833578472,1.0464723,139.35,139.33,3.63713774]
[1723833578668,1.0464723,139.35,139.34,3.5874]
[1723833578869,1.0,139.39,139.34,51.7]
[1723833579365,1.0,139.39,139.35,6.02]
[1723833580160,0.05174925,139.38,139.35,9.6071]
[1723833580373,0.05174925,139.38,139.35,3.5871]
[1723833581060,0.05174925,139.38,139.33,0.04963774]
[1723833581061,0.05174925,139.38,139.33,6.06963774]
[1723833581264,0.05174925,139.38,139.33,0.04963774]
[1723833581467,0.05174925,139.38,139.33,3.63703774]
[1723833581670,0.05174925,139.38,139.33,0.04963774]
[1723833582175,0.05174925,139.38,139.37,55.2866]
[1723833582359,1.0,139.39,139.37,51.7]
[1723833582585,1.0,139.44,139.37,51.7]
[1723833582761,1.0,139.44,139.42,3.5853]
[1723833582993,1.0,139.44,139.4,51.7]
[1723833583271,1.0,139.44,139.43,3.5851]
[1723833583566,4.5827,139.53,139.43,6.02]
[1723833583776,1.0,139.53,139.47,3.5841]
[1723833583968,3.56215767,139.52,139.47,3.5841]
[1723833584173,0.6082,139.48,139.47,3.5841]
[1723833585163,1.0,139.53,139.46,103.45406343]
[1723833585359,1.0,139.53,139.51,51.7]
[1723833585561,1.0,139.53,139.5,6.02]
[1723833585765,1.0,139.53,139.48,51.7]
[1723833585960,3.5828,139.52,139.44,51.7]
[1723833586160,1.3025,139.52,139.44,51.7]
[1723833586370,0.05069746,139.49,139.47,0.05437832]
[1723833587675,3.5838,139.48,139.47,0.05437832]
[1723833588267,0.05069746,139.49,139.47,0.05437832]
[1723833588975,3.63439746,139.49,139.47,0.05437832]
[1723833589174,0.05069746,139.49,139.47,0.05437832]
[1723833589679,3.5838,139.48,139.47,0.05437832]
[1723833590268,3.5838,139.48,139.38,6.02]
[1723833590269,51.75069746,139.49,139.38,51.7]
[1723833590470,6.02,139.48,139.38,51.7]
[1723833590870,3.5852,139.43,139.35,51.7]
[1723833591177,53.115,139.47,139.35,51.7]
[1723833591477,0.05443445,139.42,139.4,0.04593914]
[1723833591868,0.05084747,139.42,139.4,0.04593914]
[1723833592674,0.05084747,139.42,139.41,3.5856]
[1723833592872,3.5842,139.47,139.4,0.04593914]
[1723833593174,4.59774614,139.57,139.41,51.7]
[1723833593175,9.638532,139.5,139.41,51.7]
[1723833593375,6.02,139.5,139.41,51.7]
[1723833593566,6.02,139.5,139.44,51.7]
[1723833593769,9.54860606,139.5,139.44,51.7]
[1723833594178,0.0498677,139.48,139.46,0.05400078]
[1723833594672,0.0498677,139.48,139.46,3.63810078]
[1723833594876,0.0498677,139.48,139.46,0.05400078]
[1723833596277,0.0498677,139.48,139.47,51.7]
[1723833597064,0.0498677,139.48,139.47,55.284]
[1723833598577,1.0,139.53,139.47,51.7]
[1723833599381,4.5826,139.53,139.46,0.05400078]
[1723833599575,1.0,139.53,139.46,0.05400078]
[1723833599969,3.584,139.47,139.46,0.05400078]
[1723833600274,9.67739531,139.47,139.41,3.5854]
[1723833600478,3.5844,139.46,139.37,51.7]
[1723833600665,3.55489506,139.46,139.39,51.7]
[1723833601068,6.02,139.47,139.39,51.7]
[1723833601265,3.63159105,139.46,139.39,51.7]
[1723833601476,3.63159105,139.46,139.43,3.5849]
[1723833601676,0.05090441,139.44,139.43,3.5849]
[1723833602005,0.05090441,139.44,139.42,0.05285001]
[1723833602578,3.5851,139.43,139.42,0.05285001]
[1723833602779,0.05090441,139.44,139.35,51.7]
[1723833603073,3.5857,139.41,139.36,3.5867]
[1723833603478,7.23400985,139.41,139.33,51.7]
[1723833603679,1.4044,139.42,139.37,3.5865]
[1723833603680,4.9898,139.42,139.37,3.5865]
[1723833603878,0.05087401,139.38,139.37,3.5865]
[1723833604184,0.05278795,139.39,139.37,51.7]
[1723833604370,0.05278795,139.39,139.33,51.7]
[1723833604371,6.02,139.45,139.38,51.7]
[1723833604577,0.05299335,139.39,139.38,51.7]
[1723833604786,0.04730914,139.4,139.38,51.7]
[1723833604979,3.5848,139.44,139.38,51.7]
[1723833605186,0.04652109,139.4,139.38,51.74678468]
[1723833605871,0.04652109,139.4,139.39,3.586]
[1723833606275,0.04652109,139.4,139.38,0.04678468]
[1723833606783,3.5861,139.39,139.38,0.04678468]
[1723833606977,4.9771,139.39,139.38,0.04678468]
[1723833607371,4.9771,139.39,139.3,57.72]
[1723833607372,3.5868,139.37,139.33,3.5876]
[1723833607971,7.14527302,139.37,139.33,3.5876]
[1723833608479,3.55847302,139.37,139.34,3.5873]
[1723833608787,1.391,139.39,139.34,0.05279826]
[1723833608983,1.391,139.39,139.36,3.5869]
[1723833609186,1.391,139.39,139.34,51.75279826]
[1723833609484,0.05105532,139.38,139.34,51.75279826]
[1723833610279,0.05105532,139.38,139.34,0.05279826]
[1723833610481,51.75105532,139.38,139.28,51.7]
[1723833610681,3.5874,139.35,139.3,3.5884]
[1723833610981,6.02,139.36,139.28,51.7]
[1723833611186,9.566524,139.36,139.31,3.588]
[1723833611382,9.566524,139.36,139.28,51.7]
[1723833611981,0.04993305,139.33,139.31,0.04863489]
[1723833612585,0.04993305,139.33,139.32,51.7]
[1723833612884,1.391,139.39,139.31,0.04863489]
[1723833613085,3.5867,139.37,139.33,3.5875]
[1723833613290,1.391,139.39,139.31,51.7]
[1723833613486,53.091,139.39,139.28,6.02]
[1723833613783,53.091,139.39,139.28,51.7]
[1723833614011,3.5875,139.34,139.32,0.04562175]
[1723833614292,3.57143363,139.33,139.32,0.04562175]
[1723833614488,0.04882497,139.35,139.32,0.04562175]
[1723833614787,3.63612497,139.35,139.32,0.04562175]
[1723833614985,7.24057094,139.35,139.32,0.04562175]
[1723833615789,0.04882497,139.35,139.32,0.04562175]
[1723833616383,0.04882497,139.35,139.34,3.5874]
[1723833617095,0.04882497,139.35,139.33,51.7]
[1723833617096,0.04882497,139.35,139.32,0.04562175]
[1723833617485,3.5876,139.34,139.32,0.04562175]
[1723833618386,3.63602497,139.35,139.32,0.04562175]
[1723833618720,6.06882497,139.35,139.32,0.04562175]
[1723833619084,9.65612497,139.35,139.32,0.04562175]
[1723833619285,6.06882497,139.35,139.32,0.04562175]
[1723833619687,9.65612497,139.35,139.32,0.04562175]
[1723833620188,6.06882497,139.35,139.32,0.04562175]
[1723833622087,6.06882497,139.35,139.32,3.63352175]
[1723833622284,6.06882497,139.35,139.32,0.04562175]
[1723833622992,6.06882497,139.35,139.26,76.17766044]
[1723833623196,1.3509,139.34,139.26,76.17766044]
[1723833623393,3.5882,139.31,139.28,3.5888]
[1723833623597,1.3036,139.33,139.26,76.17766044]
[1723833623794,1.3036,139.33,139.27,51.7]
[1723833624101,1.3036,139.33,139.31,3.588]
[1723833624603,1.3571313,139.33,139.31,3.588]
[1723833625699,1.3571313,139.33,139.29,0.04830343]
[1723833625998,0.0535313,139.33,139.32,3.5879]
[1723833626821,0.0535313,139.33,139.31,3.588]
[1723833627198,0.0535313,139.33,139.29,0.04830343]
[1723833628598,3.5881,139.32,139.29,3.63680343]
[1723833629202,3.5881,139.32,139.29,0.04830343]
[1723833629405,6.2858,139.31,139.29,0.04830343]
[1723833629591,2.6976,139.31,139.29,0.04830343]
[1723833630098,2.6976,139.31,139.29,3.63690343]
[1723833630604,0.0535313,139.33,139.29,0.04830343]
[1723833630798,0.0535313,139.33,139.29,51.74830343]
[1723833631008,0.0535313,139.33,139.31,51.7]
[1723833631310,0.0535313,139.33,139.32,3.5879]
[1723833631602,6.02,139.39,139.37,3.5866]
[1723833631996,4.0067,139.4,139.34,51.7]
[1723833632207,7.5927,139.4,139.36,3.5867]
[1723833632797,0.04635751,139.39,139.37,0.04843304]
[1723833633515,55.7067,139.4,139.3,51.7]
[1723833633814,3.587,139.36,139.3,51.7]
[1723833634199,3.61756212,139.35,139.3,51.7]
[1723833634608,0.05435072,139.34,139.32,3.5877]
[1723833634806,0.05435072,139.34,139.31,0.05194282]
[1723833635018,0.05435072,139.34,139.31,3.64004282]
[1723833635210,0.05435072,139.34,139.31,0.05194282]
[1723833635599,3.64185072,139.34,139.31,0.05194282]
[1723833636299,0.05435072,139.34,139.31,0.05194282]
[1723833636901,0.05435072,139.34,139.32,3.5877]
[1723833638102,3.64175072,139.34,139.31,0.05194282]
[1723833638308,0.05435072,139.34,139.31,0.05194282]
[1723833639012,1.46125072,139.34,139.31,0.05194282]
[1723833640504,4.9941,139.33,139.31,0.05194282]
[1723833640715,1.4062,139.33,139.23,51.7]
[1723833640905,3.5894,139.27,139.21,51.7]
[1723833641099,51.7,139.3,139.19,3.60614017]
[1723833641407,1.3166,139.29,139.19,3.60614017]
[1723833641706,6.02,139.28,139.18,51.7]
[1723833641895,0.05324628,139.25,139.23,0.05195635]
[1723833642710,0.05324628,139.25,139.23,3.64205635]
[1723833644204,0.05324628,139.25,139.24,3.59]
[1723833647215,0.05324628,139.25,139.23,3.64215635]
[1723833648111,0.05324628,139.25,139.24,3.59]
[1723833652413,3.588,139.32,139.28,3.5887]
[1723833652711,4.2053,139.33,139.28,51.7]
[1723833652712,8.8043,139.33,139.28,51.7]
[1723833653018,6.02,139.33,139.28,51.7]
[1723833653219,6.02,139.33,139.3,3.5883]
[1723833653409,6.02,139.33,139.28,51.7]
[1723833653613,3.61756212,139.35,139.3,51.7]
[1723833653806,0.05478416,139.33,139.32,3.5879]
[1723833654912,2.6691,139.4,139.32,51.7]
[1723833655311,1.335,139.4,139.32,51.7]
[1723833656018,0.04678071,139.37,139.35,0.05024473]
[1723833656214,3.53354616,139.36,139.3,51.7]
[1723833656415,3.53354616,139.36,139.35,0.04669506]
[1723833656616,0.04678071,139.37,139.33,3.5875]
[1723833656919,3.65030772,139.36,139.33,3.5875]
[1723833657117,3.65030772,139.36,139.34,3.5873]
[1723833657620,0.04678071,139.37,139.35,3.587]
[1723833658212,3.62246789,139.37,139.35,3.587]
[1723833658611,3.62246789,139.37,139.32,0.05304253]
[1723833659113,7.20926789,139.37,139.32,0.05304253]
[1723833659415,7.20926789,139.37,139.33,3.5875]
[1723833659626,3.62246789,139.37,139.32,0.05304253]
[1723833659815,0.04678071,139.37,139.32,0.05304253]
[1723833660222,3.65429703,139.37,139.32,0.05304253]
[1723833660418,0.04678071,139.37,139.32,0.05304253]
[1723833660619,0.04678071,139.37,139.36,3.5869]
[1723833665122,12.29356743,139.44,139.4,3.5857]
[1723833665322,12.29356743,139.44,139.35,51.7]
[1723833666227,0.04874402,139.41,139.38,0.04672974]
[1723833666422,0.04874402,139.41,139.4,3.5858]
[1723833668318,0.04874402,139.41,139.38,0.04672974]
[1723833668829,3.63444402,139.41,139.38,0.04672974]
[1723833669019,0.04874402,139.41,139.38,0.04672974]
[1723833669218,3.63434402,139.41,139.38,0.04672974]
[1723833669721,0.04874402,139.41,139.38,0.04672974]
[1723833669931,0.04874402,139.41,139.38,3.63292974]
[1723833670227,0.04874402,139.41,139.38,0.04672974]
[1723833670425,0.04874402,139.41,139.34,3.5873]
[1723833670625,51.7,139.42,139.31,51.7]
[1723833671226,3.5863,139.39,139.35,3.587]
[1723833671527,0.04852009,139.38,139.36,0.0524112]
[1723833671724,0.04852009,139.38,139.36,3.6392112]
[1723833671922,3.50554867,139.37,139.36,0.0524112]
[1723833672230,0.04852009,139.38,139.37,3.5866]
[1723833674328,0.04852009,139.38,139.36,3.6392112]
[1723833675436,0.04852009,139.38,139.36,0.0524112]
[1723833675625,6.04852009,139.38,139.36,0.0524112]
[1723833675823,1.2866,139.37,139.36,0.0524112]
[1723833676131,6.04852009,139.38,139.36,0.0524112]
[1723833676525,9.63492009,139.38,139.36,0.0524112]
[1723833676731,6.04852009,139.38,139.36,0.0524112]
[1723833677031,4.8879,139.37,139.36,0.0524112]
[1723833677239,1.3013,139.37,139.28,51.7]
[1723833677530,1.3013,139.37,139.31,3.588]
[1723833678234,3.5873,139.35,139.32,3.5879]
[1723833678434,3.63713114,139.35,139.33,0.05457032]
[1723833679321,0.04983114,139.35,139.3,3.5883]
[1723833679629,0.04983114,139.35,139.26,51.7]
[1723833679935,3.5878,139.33,139.26,51.7]
[1723833680133,7.16533273,139.33,139.26,51.7]
[1723833680537,0.0478979,139.31,139.28,0.05229633]
[1723833680930,0.0478979,139.31,139.28,3.64109633]
[1723833681529,3.6360979,139.31,139.28,0.05229633]
[1723833683442,1.3896979,139.31,139.28,0.05229633]
[1723833684040,3.5886,139.3,139.28,0.05229633]
[1723833684735,4.9449,139.3,139.28,0.05229633]
[1723833685035,1.3563,139.3,139.28,0.05229633]
[1723833685338,1.3563,139.3,139.19,6.0]
[1723833685544,3.5891,139.28,139.24,3.5898]
[1723833686640,0.05192257,139.27,139.25,0.04997603]
[1723833687235,3.64112257,139.27,139.25,0.04997603]
[1723833687638,0.05192257,139.27,139.25,0.04997603]
[1723833688140,3.5895,139.26,139.25,0.04997603]
[1723833688447,7.20985855,139.26,139.25,0.04997603]
[1723833690542,3.62035855,139.26,139.16,51.7]
[1723833690745,54.3932,139.25,139.14,51.7]
[1723833690934,54.3932,139.25,139.1,10.7808]
[1723833690935,51.7,139.21,139.1,51.7]
[1723833691139,3.5919,139.17,139.1,51.7]
[1723833691373,6.0,139.18,139.1,51.7]
[1723833691643,0.04831037,139.15,139.13,0.05027474]
[1723833692145,3.5926,139.14,139.13,0.05027474]
[1723833692441,0.04831037,139.15,139.09,3.5938]
[1723833692648,3.68688207,139.15,139.09,3.5938]
[1723833692845,3.68688207,139.15,139.1,3.5935]
[1723833693041,6.0,139.14,139.1,3.5935]
[1723833693437,9.5927,139.14,139.11,0.04904387]
[1723833693640,9.5927,139.14,139.11,3.64234387]
[1723833693835,3.68688207,139.15,139.11,0.04904387]
[1723833694947,0.04831037,139.15,139.14,51.7]
[1723833695143,6.02,139.21,139.14,51.7]
[1723833695436,3.52355634,139.21,139.17,51.7]
[1723833695645,1.3311,139.23,139.17,51.7]
[1723833695850,3.60940912,139.22,139.17,51.7]
[1723833696041,1.3839,139.27,139.17,51.7]
[1723833696241,2.7154,139.27,139.22,3.5905]
[1723833696446,0.05420325,139.23,139.22,3.5905]
[1723833696749,0.05514347,139.26,139.22,3.5905]
[1723833696946,0.05514347,139.26,139.21,0.04831791]
[1723833696947,0.05514347,139.26,139.24,3.5899]
[1723833697251,51.7,139.25,139.21,0.04831791]
[1723833697635,3.5901,139.24,139.21,0.04831791]
[1723833697843,6.02,139.23,139.21,0.04831791]
[1723833699147,6.02,139.23,139.21,3.63901791]
[1723833699844,6.02,139.23,139.22,3.5905]
[1723833700448,0.05514347,139.26,139.24,3.5899]
[1723833700649,0.05514347,139.26,139.21,0.04831791]
[1723833701752,3.64464347,139.26,139.23,3.5901]
[1723833702051,0.05514347,139.26,139.23,3.5901]
[1723833703956,0.05514347,139.26,139.21,0.04831791]
[1723833704148,51.75514347,139.26,139.21,0.04831791]
[1723833704553,3.5901,139.24,139.21,3.63891791]
[1723833705348,3.5904,139.23,139.21,0.04831791]
[1723833707055,3.5904,139.23,139.21,3.63901791]
[1723833708148,51.75514347,139.26,139.21,3.63901791]
[1723833708344,3.5901,139.24,139.21,3.63901791]
[1723833708966,0.05514347,139.26,139.21,0.04831791]
[1723833709458,8.7154,139.27,139.24,51.7]
[1723833709459,5.53584347,139.27,139.24,51.7]
[1723833709756,6.0,139.35,139.26,51.7]
[1723833710056,3.67866327,139.35,139.32,3.5877]
[1723833710257,3.587,139.36,139.32,3.5877]
[1723833710556,3.587,139.36,139.31,3.5881]
[1723833710557,3.5872,139.35,139.31,3.5881]
[1723833710757,3.64091552,139.35,139.33,0.04717146]
[1723833711056,3.5874,139.34,139.33,0.04717146]
[1723833711853,7.18913363,139.34,139.33,0.04717146]
[1723833712047,3.5879,139.33,139.29,3.5886]
[1723833712760,3.5879,139.33,139.24,51.7]
[1723833713157,0.04964324,139.3,139.27,0.05475331]
[1723833713760,3.63824324,139.3,139.27,0.05475331]
[1723833713960,7.2604331,139.3,139.27,0.05475331]
[1723833714454,51.7,139.29,139.27,0.05475331]
[1723833715266,3.5889,139.28,139.27,0.05475331]
[1723833715452,51.7,139.29,139.19,6.0]
[1723833715661,51.7,139.27,139.16,51.7]
[1723833715851,1.3165,139.26,139.16,51.7]
[1723833716060,6.0,139.25,139.16,51.7]
[1723833716656,0.04774456,139.22,139.19,0.05365636]
[1723833717159,0.04774456,139.22,139.19,3.64475636]
[1723833717355,0.04774456,139.22,139.19,0.05365636]
[1723833717765,3.591,139.2,139.19,0.05365636]
[1723833717968,9.591,139.2,139.19,0.05365636]
[1723833718867,9.591,139.2,139.1,57.8006]
[1723833718868,3.5918,139.17,139.1,57.8006]
[1723833719171,1.3587,139.19,139.15,3.5922]
[1723833719662,3.5916,139.18,139.15,3.5922]
[1723833719880,7.26791844,139.18,139.15,3.5922]
[1723833720256,3.67631844,139.18,139.11,51.7]
[1723833720463,6.0,139.2,139.11,51.7]
[1723833720659,0.0501383,139.18,139.15,0.0498418]
[1723833720862,3.70275014,139.18,139.16,3.592]
[1723833721058,0.0501383,139.18,139.16,3.592]
[1723833721867,3.5573227,139.17,139.16,3.592]
[1723833722463,0.0501383,139.18,139.16,3.592]
[1723833722669,3.62542184,139.18,139.16,3.592]
[1723833722867,0.0501383,139.18,139.16,3.592]
[1723833723272,3.60027667,139.18,139.16,3.592]
[1723833723475,55.30027667,139.18,139.15,0.0498418]
[1723833723772,51.7,139.16,139.15,0.0498418]
[1723833724975,3.592,139.16,139.15,0.0498418]
[1723833726073,3.5931,139.13,139.08,1.005]
[1723833726269,9.5931,139.13,139.08,1.005]
[1723833726665,9.5931,139.13,139.09,3.5936]
[1723833727190,6.0,139.13,139.08,1.005]
[1723833727566,9.5928,139.13,139.08,1.005]
[1723833727764,0.04667195,139.12,139.1,0.05055134]
[1723833728272,0.04667195,139.12,139.1,3.64395134]
[1723833728583,226.0,139.25,139.11,103.4]
[1723833728770,0.26404409,139.24,139.18,51.7]
[1723833728969,1.3896,139.27,139.2,51.7]
[1723833729272,1.3896,139.27,139.23,3.59]
[1723833729874,4.97648823,139.27,139.17,51.7]
[1723833730172,51.7,139.25,139.24,0.05477276]
[1723833730510,51.7,139.25,139.15,51.7]
[1723833730511,57.7,139.25,139.15,51.7]
[1723833730970,51.7,139.21,139.1,51.7]
[1723833731170,3.64758881,139.2,139.12,51.7]
[1723833731389,3.53407315,139.19,139.12,51.7]
[1723833731571,0.04684377,139.17,139.15,0.05481714]
[1723833732977,0.04684377,139.17,139.15,3.64681714]
[1723833733576,0.04684377,139.17,139.16,3.592]
[1723833733878,6.0,139.2,139.15,0.05481714]
[1723833734079,6.0,139.26,139.21,3.5906]
[1723833734378,6.0,139.26,139.19,51.7]
[1723833734579,3.63216906,139.27,139.19,51.7]
[1723833734787,6.0,139.29,139.19,51.7]
[1723833734985,9.5889,139.29,139.19,51.7]
[1723833735176,0.04894936,139.25,139.22,3.63933383]
[1723833735577,0.04894936,139.25,139.22,0.04903383]
[1723833735776,0.04894936,139.25,139.23,3.59]
[1723833737185,0.04894936,139.25,139.22,3.63943383]
[1723833737488,0.04894936,139.25,139.22,0.04903383]
[1723833738189,0.04894936,139.25,139.22,3.63943383]
[1723833738381,0.04894936,139.25,139.22,0.04903383]
[1723833738774,3.63874936,139.25,139.22,0.04903383]
[1723833738976,0.04894936,139.25,139.22,0.04903383]
[1723833739185,5.98,139.24,139.22,0.04903383]
[1723833739390,55.2902,139.23,139.22,0.04903383]
[1723833739582,51.7,139.23,139.17,3.5916]
[1723833740086,8.7271,139.24,139.13,6.1412]
[1723833740290,2.7471,139.24,139.15,51.7]
[1723833740484,8.7271,139.24,139.15,51.7]
[1723833740679,0.04810568,139.21,139.2,3.5908]
[1723833741191,0.04810568,139.21,139.19,3.5911]
[1723833741377,3.60707215,139.21,139.19,3.5911]
[1723833741689,55.30707215,139.21,139.0,1.005]
[1723833741886,51.7,139.18,139.06,51.9103]
[1723833742079,5.98,139.17,139.06,51.9103]
[1723833742390,51.7,139.16,139.06,0.2103]
[1723833742585,51.7,139.13,139.06,0.2103]
[1723833743191,55.33331364,139.13,139.06,0.2103]
[1723833743489,53.0957,139.16,139.06,0.2103]
[1723833743683,0.04692393,139.12,139.09,0.02441144]
[1723833743884,0.04692393,139.12,139.1,3.5934]
[1723833745497,51.74692393,139.12,139.09,0.02441144]
[1723833745701,6.0,139.11,139.09,0.02441144]
[1723833746001,51.74692393,139.12,139.09,0.02441144]
[1723833746002,0.04692393,139.12,139.11,3.5933]
[1723833747893,0.04692393,139.12,139.09,0.02441144]
[1723833748683,3.64012393,139.12,139.09,0.02441144]
[1723833748887,51.74692393,139.12,139.09,0.02441144]
[1723833749089,3.5933,139.11,139.09,0.02441144]
[1723833749290,6.0,139.1,139.09,0.02441144]
[1723833750286,57.7,139.1,139.04,1.005]
[1723833750485,3.5943,139.08,139.04,4.6]
[1723833750693,57.7,139.1,139.04,4.6]
[1723833751196,3.5944,139.07,139.04,4.6]
[1723833751992,7.24143905,139.07,139.04,4.6]
[1723833752602,7.24143905,139.07,139.04,1.005]
[1723833754007,3.64703905,139.07,139.04,1.005]
[1723833754199,51.755228,139.08,139.04,1.005]
[1723833755100,3.5945,139.07,139.04,1.005]
[1723833755399,51.7,139.05,139.0,1.005]
[1723833755702,55.2959,139.01,139.0,1.005]
[1723833757192,3.5962,139.0,138.99,1.005]
[1723833757398,3.5962,139.0,138.95,5.6072]
[1723833757399,51.7,139.0,138.95,5.6072]
[1723833757896,6.0,138.99,138.95,5.6072]
[1723833758092,6.04758605,138.99,138.95,5.6072]
[1723833758299,0.04758605,138.99,138.95,5.6072]
[1723833758495,6.0,138.98,138.95,5.6072]
[1723833758892,51.7,138.97,138.95,2.01]
[1723833759193,55.297,138.97,138.95,2.01]
[1723833760706,3.5972,138.96,138.95,2.01]
[1723833762593,53.0471,138.97,138.9,2.01]
[1723833762797,51.7,138.93,138.9,2.01]
[1723833763000,5.98,138.92,138.9,2.01]
[1723833763791,9.52948207,138.92,138.9,2.01]
[1723833764201,13.12778207,138.92,138.9,2.01]
[1723833764798,3.54948207,138.92,138.9,2.01]
[1723833765106,51.74742076,138.95,138.9,5.6086]
[1723833765107,5.98,138.91,138.9,5.6086]
[1723833765405,9.61154269,138.91,138.9,5.6086]
[1723833765788,9.61154269,138.91,138.9,2.01]
[1723833766695,3.63154269,138.91,138.9,5.6088]
[1723833766901,9.63154269,138.91,138.9,5.6088]
[1723833768907,9.63154269,138.91,138.9,2.01]
[1723833769095,3.63154269,138.91,138.9,2.01]
[1723833769592,3.63154269,138.91,138.9,5.6088]
[1723833769994,0.0534922,138.92,138.9,2.01]
[1723833770503,3.55211481,138.99,138.9,2.01]
[1723833770504,7.3471,138.97,138.9,2.01]
[1723833771104,7.3471,138.97,138.94,3.5976]
[1723833771302,3.55211481,138.99,138.92,51.7]
[1723833771505,53.1055,139.04,138.94,51.7]
[1723833771706,1.4055,139.04,138.94,51.7]
[1723833772002,0.04822608,139.0,138.98,0.04723586]
[1723833772406,0.04822608,139.0,138.99,3.5964]
[1723833775799,0.04822608,139.0,138.98,0.04723586]
[1723833776209,51.7,138.99,138.98,0.04723586]
[1723833779307,7.34942608,139.0,138.98,3.64393586]
[1723833779809,6.04822608,139.0,138.99,3.5964]
[1723833780014,0.04822608,139.0,138.99,3.5964]
[1723833782205,0.04822608,139.0,138.98,0.04723586]
[1723833782412,51.7,138.99,138.86,51.7]
[1723833782607,55.2971,138.97,138.88,6.0]
[1723833783205,3.5972,138.96,138.88,6.0]
[1723833783407,51.7,138.94,138.88,6.0]
[1723833783711,51.74863816,138.94,138.91,3.5984]
[1723833784020,51.74863816,138.94,138.85,82.77947453]
[1723833784325,51.74863816,138.94,138.85,80.12917453]
[1723833784713,6.0,138.93,138.85,80.12917453]
[1723833784915,6.0,138.93,138.9,5.6085]
[1723833785512,6.0,138.93,138.9,2.01]
[1723833785714,51.7,138.92,138.9,2.01]
[1723833786313,5.0063,138.91,138.9,2.01]
[1723833787617,1.4078,138.91,138.9,2.01]
[1723833788714,5.0063,138.91,138.9,2.01]
[1723833789613,3.5991,138.89,138.85,1.005]
[1723833789821,55.2991,138.89,138.85,1.005]
[1723833790021,0.05095016,138.88,138.85,1.005]
[1723833790320,3.60788664,138.88,138.85,1.005]
[1723833790922,3.60788664,138.88,138.86,3.5996]
[1723833791123,7.20718664,138.88,138.85,1.005]
[1723833791323,13.18718664,138.88,138.85,1.005]
[1723833791524,9.58788664,138.88,138.85,1.005]
[1723833792129,9.58788664,138.88,138.86,3.5997]
[1723833792330,9.58788664,138.88,138.85,1.005]
[1723833792718,9.58788664,138.88,138.85,4.6049]
[1723833793733,51.7,138.87,138.85,1.005]
[1723833794223,51.7,138.87,138.86,3.5998]
[1723833794431,51.7,138.87,138.85,1.005]
[1723833795129,55.2996,138.87,138.85,1.005]
[1723833795522,51.7,138.87,138.85,1.005]
[1723833796129,55.2996,138.87,138.85,1.005]
[1723833796426,51.7,138.87,138.86,3.5998]
[1723833796628,51.7,138.87,138.85,1.005]
[1723833797028,9.58788664,138.88,138.87,3.5995]
[1723833797427,0.05095016,138.88,138.87,3.5995]
[1723833800335,5.98,138.93,138.92,3.5982]
[1723833800529,51.7,138.99,138.88,1.3697]
[1723833800725,51.7,138.99,138.95,3.5975]
[1723833800930,51.7,138.97,138.88,1.3697]
[1723833801435,51.7,138.97,138.95,3.5975]
[1723833801733,51.75264441,138.97,138.88,1.3697]